bitfinex-derivatives/quotes_SOLF0:USTF0_20250113
["timestamp","ask_amount","ask_price","bid_price","bid_amount"]
[1736776215089,2.8438,175.97,175.88,1.7127]
[1736776215491,2.8438,175.97,175.92,2.8445]
[1736776215891,2.8441,175.95,175.88,1.7127]
[1736776216392,6.42,175.98,175.88,1.7127]
[1736776216687,2.8444,175.94,175.89,2.8449]
[1736776216892,22.36225183,175.96,175.88,1.7127]
[1736776217395,22.36225183,175.93,175.85,3.2749]
[1736776218190,22.36225183,175.96,175.85,3.2749]
[1736776219393,22.36225183,175.99,175.85,25.63715183]
[1736776219597,22.36225183,176.02,175.88,22.36225183]
[1736776220004,2.8432,176.01,175.88,22.36225183]
[1736776220196,22.36225183,176.05,175.91,22.36225183]
[1736776220397,6.42,176.07,175.92,1.7008]
[1736776220592,2.8425,176.05,175.99,2.8433]
[1736776220994,2.8425,176.05,175.93,3.1697]
[1736776220995,28.78225183,176.08,175.94,22.36225183]
[1736776221398,6.42,176.08,175.94,28.78225183]
[1736776221998,2.842,176.09,175.94,28.78225183]
[1736776222395,2.842,176.09,176.0,2.8432]
[1736776222602,2.8421,176.08,176.01,1.7008]
[1736776222995,22.36225183,176.11,176.01,1.7008]
[1736776223300,22.36225183,176.05,175.93,3.1697]
[1736776223500,22.36225183,176.05,175.97,2.8436]
[1736776223696,2.8428,176.03,175.94,1.6932]
[1736776224103,25.20485183,176.05,175.99,2.8434]
[1736776224304,22.36225183,176.05,175.99,2.8434]
[1736776224798,25.20475183,176.05,175.99,2.8434]
[1736776225212,22.36225183,176.05,175.99,2.8434]
[1736776225706,2.8426,176.04,176.0,2.8433]
[1736776225903,22.36225183,176.05,175.94,1.6932]
[1736776226203,2.8418,176.09,175.97,22.36225183]
[1736776226413,22.36225183,176.11,175.97,22.36225183]
[1736776226706,2.8418,176.1,175.97,22.36225183]
[1736776228006,90.1374986,176.14,175.97,22.36225183]
[1736776228202,2.8412,176.13,176.0,22.36225183]
[1736776228407,22.36225183,176.14,176.01,1.6263]
[1736776228610,22.36225183,176.14,176.01,3.1918]
[1736776228811,2.8415,176.12,176.02,1.5713]
[1736776230106,22.36225183,176.11,176.02,1.5713]
[1736776230309,22.36225183,176.08,176.02,1.5713]
[1736776230607,2.843,176.02,175.97,1.7077]
[1736776231001,22.36225183,176.05,175.97,1.7077]
[1736776231207,2.8433,176.0,175.97,1.7077]
[1736776232204,2.8431,176.02,175.97,1.7077]
[1736776232402,22.36225183,176.05,175.97,1.7077]
[1736776232608,28.76225183,176.08,175.97,1.7077]
[1736776232909,6.4,176.08,175.98,1.6772]
[1736776233809,2.8422,176.07,176.02,2.8429]
[1736776234107,6.4,176.08,175.98,1.6772]
[1736776234300,2.8425,176.05,175.99,2.8434]
[1736776234500,6.4,176.08,175.97,1.7077]
[1736776235003,2.8423,176.07,175.97,1.7077]
[1736776235507,6.4,176.08,175.97,1.7077]
[1736776236307,2.8424,176.06,175.97,1.7077]
[1736776236708,2.8424,176.06,176.01,2.843]
[1736776237511,2.8422,176.07,175.97,1.7077]
[1736776237712,22.36225183,176.11,175.97,1.7077]
[1736776237912,2.8415,176.11,176.03,2.8428]
[1736776238109,2.8415,176.11,175.99,22.36225183]
[1736776238303,6.4,176.13,175.99,22.36225183]
[1736776238505,22.36225183,176.11,176.04,2.8426]
[1736776238810,22.36225183,176.11,175.97,1.7077]
[1736776239008,22.36225183,176.11,176.02,2.8428]
[1736776239311,22.36225183,176.11,175.97,1.7077]
[1736776239710,22.36225183,176.11,175.99,22.36225183]
[1736776239909,22.36225183,176.17,176.02,22.36225183]
[1736776240115,22.36225183,176.17,176.03,3.2591]
[1736776241313,22.36225183,176.2,176.05,22.36225183]
[1736776241610,6.4,176.19,176.06,1.6756]
[1736776241810,9.2402,176.19,176.13,2.8411]
[1736776242012,6.4,176.19,176.06,1.6756]
[1736776242202,22.36225183,176.2,176.06,1.6756]
[1736776243804,2.8404,176.18,176.13,2.8411]
[1736776245914,25.20235183,176.2,176.06,1.6756]
[1736776246112,6.4,176.21,176.08,22.36225183]
[1736776246315,6.4,176.21,176.11,2.8414]
[1736776246514,2.8407,176.16,176.06,1.6756]
[1736776247115,2.8407,176.16,176.09,2.8418]
[1736776247412,2.8404,176.19,176.06,1.6756]
[1736776247614,28.76225183,176.23,176.08,22.36225183]
[1736776247815,28.76225183,176.23,176.17,2.8405]
[1736776248116,28.76225183,176.23,176.08,28.76225183]
[1736776248312,22.36225183,176.23,176.08,28.76225183]
[1736776248706,2.84,176.21,176.17,2.8405]
[1736776248918,22.36225183,176.23,176.08,28.76225183]
[1736776249413,6.4,176.25,176.11,22.36225183]
[1736776249612,28.76225183,176.26,176.12,3.2574]
[1736776249808,22.36225183,176.26,176.12,3.2574]
[1736776250004,28.76225183,176.29,176.14,22.36225183]
[1736776250213,28.76225183,176.29,176.15,1.6927]
[1736776250416,28.76225183,176.29,176.22,2.8397]
[1736776250606,28.76225183,176.29,176.15,1.6927]
[1736776250915,2.8392,176.26,176.22,2.8397]
[1736776251615,28.76225183,176.29,176.15,1.6927]
[1736776251816,2.839,176.27,176.23,2.8395]
[1736776253715,2.8388,176.28,176.24,2.8394]
[1736776256319,2.8388,176.28,176.25,2.8392]
[1736776256515,2.8385,176.3,176.17,22.36225183]
[1736776256918,2.8385,176.3,176.2,2.8399]
[1736776257123,2.8385,176.3,176.17,22.36225183]
[1736776257324,22.36225183,176.32,176.17,22.36225183]
[1736776257625,2.8383,176.31,176.27,2.8388]
[1736776257816,28.76225183,176.32,176.17,22.36225183]
[1736776258017,28.76225183,176.32,176.25,2.8391]
[1736776258213,28.76225183,176.32,176.17,22.36225183]
[1736776258415,22.36225183,176.29,176.15,8.0927]
[1736776258812,22.36225183,176.29,176.23,2.8395]
[1736776258813,2.8388,176.28,176.23,2.8395]
[1736776259217,28.76225183,176.32,176.15,8.0927]
[1736776259520,28.76225183,176.32,176.18,22.36225183]
[1736776259820,28.76225183,176.32,176.19,1.6699]
[1736776260421,28.76225183,176.32,176.25,2.8391]
[1736776260619,22.36225183,176.29,176.15,8.0927]
[1736776260820,2.8392,176.26,176.21,2.8398]
[1736776261015,2.8392,176.26,176.15,8.0927]
[1736776261411,2.8392,176.26,176.21,2.8398]
[1736776262217,6.4,176.25,176.15,1.6927]
[1736776262421,22.36225183,176.23,176.15,1.6927]
[1736776262818,22.36225183,176.2,176.09,94.98943619]
[1736776263323,6.4,176.25,176.1,22.36225183]
[1736776263524,28.76225183,176.25,176.1,22.36225183]
[1736776263723,2.8407,176.17,176.11,2.8415]
[1736776263931,22.36225183,176.19,176.11,2.8415]
[1736776264124,6.4,176.18,176.08,1.6687]
[1736776264316,22.36225183,176.16,176.08,1.6687]
[1736776264727,22.36225183,176.13,176.05,1.5532]
[1736776265522,22.36225183,176.13,176.03,97.56]
[1736776265922,22.36225183,176.13,175.98,28.76225183]
[1736776266517,25.20355183,176.13,175.98,28.76225183]
[1736776267030,22.36225183,176.13,175.98,22.36225183]
[1736776267827,22.36225183,176.13,176.01,22.36225183]
[1736776268424,25.20345183,176.13,176.07,2.842]
[1736776268624,25.20345183,176.13,176.01,22.36225183]
[1736776268625,28.76225183,176.16,176.01,22.36225183]
[1736776269329,22.36225183,176.19,176.04,22.36225183]
[1736776269530,22.36225183,176.19,176.05,1.6072]
[1736776269728,22.36225183,176.16,176.05,1.6072]
[1736776269930,22.36225183,176.16,176.07,2.842]
[1736776270424,22.36225183,176.16,176.06,1.6809]
[1736776270824,2.8414,176.13,176.07,2.8421]
[1736776271018,2.8414,176.13,176.06,1.6809]
[1736776271224,2.8414,176.13,176.08,2.8419]
[1736776272026,2.8414,176.13,176.06,1.6809]
[1736776272227,2.841,176.15,176.06,1.6809]
[1736776272431,22.36225183,176.19,176.06,1.6809]
[1736776272631,6.4,176.21,176.07,24.05405183]
[1736776272826,22.36225183,176.22,176.07,24.05405183]
[1736776272827,2.8402,176.2,176.07,24.05405183]
[1736776273033,28.76225183,176.22,176.07,24.05405183]
[1736776273530,2.84,176.21,176.07,24.05405183]
[1736776273726,28.76225183,176.22,176.07,24.05405183]
[1736776273931,2.8404,176.18,176.07,24.05405183]
[1736776274229,22.36225183,176.16,176.06,1.6809]
[1736776274826,22.36225183,176.13,176.06,1.6809]
[1736776275026,2.8415,176.11,176.06,4.5232]
[1736776275427,22.36225183,176.13,175.99,1.6271]
[1736776275632,6.4,176.14,176.0,1.6013]
[1736776275633,22.36225183,176.1,176.0,1.6013]
[1736776276232,2.8417,176.1,176.0,1.6013]
[1736776276934,22.36225183,176.13,176.0,1.6013]
[1736776277326,22.36225183,176.13,176.04,2.8425]
[1736776277530,2.8418,176.1,176.0,1.6013]
[1736776277930,2.8418,176.1,176.06,2.8422]
[1736776278427,2.8418,176.1,176.0,1.6013]
[1736776278428,22.36225183,176.1,176.0,1.6013]
[1736776278831,22.36225183,176.1,176.0,4.4446]
[1736776279229,22.36225183,176.1,176.0,1.6013]
[1736776279425,2.8422,176.07,176.0,1.6013]
[1736776279628,2.8422,176.07,176.02,2.8428]
[1736776279934,2.8422,176.07,176.0,1.6013]
[1736776280134,2.8422,176.07,176.04,2.8426]
[1736776280534,2.842,176.08,176.04,2.8426]
[1736776281329,22.36225183,176.1,176.0,1.6013]
[1736776281527,28.76225183,176.13,176.0,1.6013]
[1736776281729,22.36225183,176.13,176.0,1.6013]
[1736776281930,2.8416,176.11,176.07,2.8421]
[1736776282226,22.36225183,176.13,176.0,1.6013]
[1736776282625,2.842,176.08,176.04,2.8426]
[1736776282827,22.36225183,176.1,176.0,1.6013]
[1736776283031,2.8429,176.03,176.0,1.6013]
[1736776283229,22.36225183,176.07,175.97,95.06367572]
[1736776283429,6.4,176.08,175.98,1.5593]
[1736776283627,2.8422,176.07,176.01,2.8431]
[1736776283930,22.36225183,176.07,175.98,1.5593]
[1736776284531,6.4,176.08,175.98,1.5593]
[1736776285631,9.242,176.08,175.98,1.5593]
[1736776285834,6.4,176.08,175.98,1.5593]
[1736776286039,6.4,176.08,175.98,23.92155183]
[1736776286239,22.36225183,176.1,175.98,23.92155183]
[1736776286635,25.20405183,176.1,175.98,23.92155183]
[1736776286939,22.36225183,176.1,175.98,23.92155183]
[1736776287343,2.842,176.09,176.04,2.8425]
[1736776287638,22.36225183,176.1,175.98,23.92155183]
[1736776287833,2.8422,176.07,176.03,2.8428]
[1736776288030,22.36225183,176.1,176.03,2.8428]
[1736776288437,2.842,176.08,176.03,2.8428]
[1736776289138,2.842,176.08,175.98,23.92155183]
[1736776289139,2.8417,176.1,175.98,23.92155183]
[1736776289336,6.4,176.12,176.01,22.36225183]
[1736776289635,6.4,176.12,176.07,2.842]
[1736776289836,9.2414,176.12,176.07,2.842]
[1736776290035,6.4,176.12,176.02,1.6582]
[1736776290937,9.2414,176.12,176.08,2.8419]
[1736776291341,6.4,176.12,176.02,1.6582]
[1736776291640,6.4,176.12,176.05,2.8425]
[1736776291843,22.36225183,176.1,175.98,1.5593]
[1736776292038,2.8426,176.05,176.01,2.8431]
[1736776292240,22.36225183,176.1,175.98,1.5593]
[1736776292640,2.8423,176.07,176.04,2.8426]
[1736776292839,22.36225183,176.1,176.04,2.8426]
[1736776293037,2.8417,176.1,176.06,2.8422]
[1736776293234,6.4,176.12,176.06,2.8422]
[1736776293544,6.4,176.12,175.98,23.92155183]
[1736776294142,2.8415,176.11,176.07,2.8421]
[1736776294347,22.36225183,176.13,175.98,23.92155183]
[1736776294546,28.76225183,176.13,175.98,23.92155183]
[1736776295143,6.4,176.15,176.01,22.36225183]
[1736776295342,2.8411,176.14,176.02,1.6426]
[1736776295741,2.8411,176.14,176.05,2.8424]
[1736776295938,2.8411,176.14,176.06,3.3162]
[1736776296242,22.36225183,176.16,176.08,2.842]
[1736776296644,2.8415,176.12,176.08,2.842]
[1736776296844,22.36225183,176.16,176.08,2.842]
[1736776297245,2.8415,176.12,176.08,2.842]
[1736776297444,2.8415,176.12,176.06,3.3162]
[1736776297648,2.8415,176.12,176.09,2.8418]
[1736776297943,2.8417,176.1,176.06,3.3162]
[1736776298147,2.8417,176.1,176.08,2.842]
[1736776298344,22.36225183,176.13,176.08,2.842]
[1736776299147,2.8416,176.11,176.08,2.842]
[1736776300839,6.4,176.17,176.06,3.3162]
[1736776301044,22.36225183,176.16,176.06,3.3162]
[1736776301247,6.4,176.15,176.06,3.3162]
[1736776301550,2.8411,176.14,176.11,2.8414]
[1736776302442,22.36225183,176.16,176.13,2.8411]
[1736776302643,2.8407,176.17,176.06,3.3162]
[1736776303442,25.20265183,176.19,176.06,3.3162]
[1736776303649,62.77877598,176.2,176.07,22.36225183]
[1736776304048,91.54102781,176.22,176.07,22.36225183]
[1736776304249,2.8402,176.19,176.07,22.36225183]
[1736776304650,2.8402,176.19,176.14,2.8409]
[1736776304951,2.8404,176.18,176.14,2.8409]
[1736776305148,28.76225183,176.22,176.14,2.8409]
[1736776305550,2.8403,176.19,176.14,2.8409]
[1736776305846,28.76225183,176.22,176.13,2.8411]
[1736776306045,22.36225183,176.19,176.06,9.7162]
[1736776306551,2.8408,176.16,176.12,2.8412]
[1736776306844,22.36225183,176.19,176.06,3.3162]
[1736776307051,2.8412,176.13,176.07,2.842]
[1736776307247,22.36225183,176.13,176.06,3.3162]
[1736776307749,2.8415,176.11,176.08,2.842]
[1736776307951,22.36225183,176.13,176.08,2.842]
[1736776308152,2.8414,176.12,176.06,3.3162]
[1736776308447,28.76225183,176.17,176.06,3.3162]
[1736776308646,6.4,176.17,176.06,3.3162]
[1736776309045,6.4,176.17,176.07,22.36225183]
[1736776309247,2.8403,176.19,176.07,22.36225183]
[1736776310952,2.8404,176.18,176.07,22.36225183]
[1736776311551,22.36225183,176.2,176.07,22.36225183]
[1736776311851,2.8407,176.17,176.06,3.3162]
[1736776312352,22.36225183,176.2,176.06,3.3162]
[1736776312850,22.36225183,176.17,176.06,3.3162]
[1736776313641,2.8415,176.12,176.08,2.842]
[1736776315953,22.36225183,176.14,176.06,3.3162]
[1736776316154,22.36225183,176.14,175.98,119.88225183]
[1736776316349,22.36225183,176.14,176.02,3.2145]
[1736776316748,2.8416,176.11,176.05,2.8424]
[1736776316954,22.36225183,176.14,176.02,3.2145]
[1736776318053,2.8415,176.12,176.05,2.8424]
[1736776318253,2.8415,176.12,176.02,3.2145]
[1736776318954,2.8415,176.11,176.07,2.8421]
[1736776319456,22.36225183,176.14,176.02,3.2145]
[1736776320446,2.8415,176.12,176.08,2.842]
[1736776321753,22.36225183,176.14,176.02,3.2145]
[1736776322156,2.8408,176.16,176.13,2.8412]
[1736776323252,22.36225183,176.19,176.14,2.841]
[1736776323447,2.8406,176.17,176.14,2.841]
[1736776324055,2.8405,176.18,176.04,22.36225183]
[1736776324252,2.8405,176.18,176.07,22.36225183]
[1736776324456,2.8405,176.18,176.08,1.6464]
[1736776324851,2.8405,176.18,176.09,1.594]
[1736776325160,2.841,176.15,176.08,1.6464]
[1736776325360,22.36225183,176.16,176.03,1.594]
[1736776325560,22.36225183,176.16,176.03,3.2404]
[1736776325755,22.36225183,176.19,176.04,22.36225183]
[1736776326456,2.8406,176.17,176.04,22.36225183]
[1736776326661,22.36225183,176.19,176.04,22.36225183]
[1736776327161,22.36225183,176.15,176.03,3.2404]
[1736776327961,22.36225183,176.18,176.03,3.2404]
[1736776328262,22.36225183,176.18,176.13,2.8412]
[1736776328661,2.8407,176.17,176.13,2.8412]
[1736776329153,2.8407,176.17,176.03,3.2404]
[1736776329154,2.8407,176.17,176.05,22.36225183]
[1736776329355,2.8404,176.18,176.05,22.36225183]
[1736776329852,2.8404,176.18,176.05,28.04715183]
[1736776330055,6.38,176.19,176.05,28.04715183]
[1736776330253,6.38,176.19,176.15,2.8409]
[1736776330454,2.8405,176.18,176.05,28.04715183]
[1736776330658,6.38,176.19,176.05,28.04715183]
[1736776330859,22.36225183,176.18,176.05,22.36225183]
[1736776331056,22.36225183,176.18,176.03,3.2404]
[1736776331057,2.8413,176.13,176.03,3.2404]
[1736776331258,6.38,176.19,176.03,3.2404]
[1736776331259,22.36225183,176.15,176.03,3.2404]
[1736776331455,13.95413965,176.13,176.07,2.8421]
[1736776331665,2.8416,176.11,176.07,2.8421]
[1736776332266,2.8416,176.11,176.03,3.2404]
[1736776332464,2.8414,176.12,176.08,2.842]
[1736776333257,16.79543965,176.13,176.1,2.8416]
[1736776333455,22.32046668,176.17,176.03,3.2404]
[1736776334063,2.8411,176.14,176.03,3.2404]
[1736776334263,22.32046668,176.17,176.03,3.2404]
[1736776334559,2.8408,176.16,176.09,2.8418]
[1736776334764,6.38,176.19,176.1,1.6734]
[1736776335165,2.8405,176.18,176.14,2.8409]
[1736776335861,2.8406,176.17,176.14,2.8409]
[1736776336165,6.38,176.19,176.1,1.6734]
[1736776336362,8.79837802,176.21,176.1,1.6734]
[1736776336566,8.79837802,176.21,176.11,3.269]
[1736776336765,91.47924266,176.22,176.11,3.269]
[1736776337067,85.09924266,176.22,176.11,3.269]
[1736776337368,62.77877598,176.22,176.11,3.269]
[1736776337565,62.77877598,176.22,176.16,2.8406]
[1736776337566,2.8401,176.2,176.16,2.8406]
[1736776337867,69.15877598,176.24,176.11,25.58946668]
[1736776338069,69.15877598,176.24,176.18,2.8404]
[1736776338458,69.15877598,176.24,176.11,25.58946668]
[1736776338659,2.8397,176.23,176.19,2.8401]
[1736776338865,6.38,176.24,176.11,25.58946668]
[1736776339074,2.8398,176.22,176.18,2.8402]
[1736776339771,22.32046668,176.22,176.11,3.269]
[1736776340178,22.32046668,176.19,176.1,1.6734]
[1736776340373,2.8409,176.15,176.11,2.8414]
[1736776343281,2.841,176.15,176.05,1.6036]
[1736776343475,22.32046668,176.16,176.05,1.6036]
[1736776343877,6.38,176.15,176.05,1.6036]
[1736776344385,91.47924266,176.19,176.05,23.92406668]
[1736776344677,62.77877598,176.19,176.08,22.32046668]
[1736776344874,62.77877598,176.19,176.17,2.8404]
[1736776345280,9.2198,176.22,176.1,1.6879]
[1736776345583,6.38,176.22,176.1,1.6879]
[1736776346084,9.2198,176.22,176.1,1.6879]
[1736776346274,28.70046668,176.22,176.1,1.6879]
[1736776346785,28.70046668,176.22,176.13,2.8411]
[1736776347080,2.8408,176.16,176.11,2.8414]
[1736776347276,28.70046668,176.22,176.1,1.6879]
[1736776348175,2.8404,176.19,176.15,2.8409]
[1736776348480,62.77877598,176.24,176.11,22.32046668]
[1736776348877,2.8399,176.21,176.17,2.8405]
[1736776349979,2.8399,176.21,176.18,2.8403]
[1736776350185,28.70046668,176.25,176.11,22.32046668]
[1736776350483,28.70046668,176.25,176.15,2.8408]
[1736776350687,28.70046668,176.25,176.11,22.32046668]
[1736776350874,22.32046668,176.22,176.12,1.5541]
[1736776351078,22.32046668,176.22,176.14,2.841]
[1736776351478,22.32046668,176.22,176.12,1.5541]
[1736776351680,2.8405,176.18,176.15,2.8409]
[1736776352181,2.8402,176.19,176.14,2.841]
[1736776352384,22.32046668,176.22,176.14,2.841]
[1736776353385,22.32046668,176.22,176.12,1.5541]
[1736776353586,2.8405,176.18,176.15,2.8408]
[1736776357189,28.70046668,176.22,176.12,1.5541]
[1736776357488,6.38,176.22,176.12,1.5541]
[1736776358188,9.2198,176.22,176.19,2.8402]
[1736776358589,2.8398,176.22,176.19,2.8402]
[1736776359891,2.8399,176.21,176.19,2.8402]
[1736776360592,22.32046668,176.25,176.12,1.5541]
[1736776360782,22.32046668,176.22,176.12,1.5541]
[1736776361187,2.8409,176.15,176.12,4.3954]
[1736776361687,2.8404,176.18,176.12,1.5541]
[1736776361889,6.38,176.19,176.12,1.5541]
[1736776362185,2.8409,176.16,176.13,2.8411]
[1736776362385,28.70046668,176.19,176.12,1.5541]
[1736776362787,2.8409,176.15,176.12,4.3954]
[1736776362981,28.70046668,176.19,176.12,1.5541]
[1736776363383,2.8406,176.17,176.14,2.841]
[1736776363586,2.8406,176.17,176.12,1.5541]
[1736776363792,28.70046668,176.19,176.12,1.5541]
[1736776363991,2.8406,176.17,176.14,2.841]
[1736776364591,28.70046668,176.19,176.1,1.6879]
[1736776365596,2.841,176.15,176.12,2.8413]
[1736776365890,2.841,176.15,176.05,1.6418]
[1736776365891,22.32046668,176.16,176.05,1.6418]
[1736776366490,2.8415,176.12,176.08,2.842]
[1736776366697,6.38,176.19,176.07,22.32046668]
[1736776366991,2.8406,176.17,176.07,22.32046668]
[1736776367184,28.70046668,176.19,176.05,1.6418]
[1736776367384,22.32046668,176.16,176.05,1.6418]
[1736776367585,2.8415,176.12,176.08,2.842]
[1736776367788,22.32046668,176.16,176.05,1.6418]
[1736776368187,2.8417,176.11,176.05,1.6418]
[1736776368682,2.8413,176.13,176.08,2.842]
[1736776369091,22.32046668,176.16,176.05,1.6418]
[1736776369594,2.8411,176.14,176.1,2.8417]
[1736776369796,22.32046668,176.16,176.05,1.6418]
[1736776370890,2.8413,176.13,176.09,2.8418]
[1736776371092,2.8413,176.13,176.05,1.6418]
[1736776371291,2.8412,176.14,176.1,2.8416]
[1736776371485,22.32046668,176.16,176.1,2.8416]
[1736776371792,2.8415,176.12,176.08,2.8419]
[1736776371996,6.38,176.12,176.05,1.6418]
[1736776372197,6.38,176.12,176.03,1.6965]
[1736776372398,2.842,176.09,176.06,2.8423]
[1736776372698,6.38,176.12,176.02,1.6717]
[1736776372899,2.8421,176.08,176.05,2.8424]
[1736776373997,13.95922876,176.11,175.99,15.52892876]
[1736776374997,2.842,176.09,176.05,2.8423]
[1736776375397,2.842,176.08,176.05,2.8423]
[1736776375794,6.38,176.12,176.05,2.8423]
[1736776375992,2.8419,176.09,176.05,2.8423]
[1736776376393,9.2215,176.12,176.01,22.3340906]
[1736776376795,6.38,176.12,176.04,2.8426]
[1736776377000,2.8416,176.11,176.01,22.3340906]
[1736776377296,6.38,176.12,175.99,1.5697]
[1736776377890,22.3340906,176.1,175.99,1.5697]
[1736776378091,22.3340906,176.1,176.01,2.8431]
[1736776378293,2.8426,176.05,176.01,2.8431]
[1736776379396,2.8428,176.04,176.0,2.8432]
[1736776379596,2.8428,176.04,175.99,1.5697]
[1736776380202,2.8428,176.04,176.0,2.8432]
[1736776380503,2.8428,176.03,175.99,1.5697]
[1736776381298,22.3340906,176.1,175.99,1.5697]
[1736776381797,22.3340906,176.1,176.03,2.8427]
[1736776381994,6.38,176.12,175.99,1.5697]
[1736776382199,22.3340906,176.09,175.99,1.5697]
[1736776382599,22.3340906,176.09,176.0,2.8432]
[1736776382803,22.3340906,176.09,175.99,1.5697]
[1736776383605,6.38,176.1,175.99,1.5697]
[1736776384107,2.8421,176.08,176.04,2.8425]
[1736776384302,2.8421,176.08,175.99,1.5697]
[1736776384499,22.3340906,176.13,175.99,1.5697]
[1736776384708,9.2215,176.12,176.01,22.3340906]
[1736776384911,6.38,176.14,176.01,22.3340906]
[1736776385203,2.8413,176.13,176.04,2.8425]
[1736776385401,2.8413,176.13,176.01,22.3340906]
[1736776385601,6.38,176.14,176.01,22.3340906]
[1736776386805,2.8417,176.1,176.06,2.8422]
[1736776387195,6.38,176.14,176.01,22.3340906]
[1736776387504,2.8415,176.12,176.08,2.8419]
[1736776388499,2.8415,176.11,176.08,2.8419]
[1736776388806,6.38,176.15,176.08,2.8419]
[1736776389003,2.8414,176.12,176.01,22.3340906]
[1736776389205,6.38,176.18,176.04,22.3340906]
[1736776389402,6.38,176.18,176.05,3.3106]
[1736776389609,6.38,176.19,176.07,22.3340906]
[1736776390297,85.11286658,176.22,176.07,22.3340906]
[1736776390506,6.38,176.21,176.07,22.3340906]
[1736776390900,22.3340906,176.22,176.07,22.3340906]
[1736776391097,28.7140906,176.22,176.07,22.3340906]
[1736776391403,6.38,176.21,176.07,22.3340906]
[1736776391806,22.3340906,176.22,176.07,22.3340906]
[1736776392104,6.38,176.22,176.1,22.3340906]
[1736776392500,2.8399,176.21,176.16,2.8406]
[1736776392706,2.8399,176.21,176.1,22.3340906]
[1736776393303,28.7140906,176.25,176.17,2.8404]
[1736776393501,74.08839025,176.27,176.13,22.3340906]
[1736776393803,74.08839025,176.27,176.14,4.788]
[1736776394009,2.8394,176.25,176.14,4.788]
[1736776394303,6.38,176.27,176.14,4.788]
[1736776394600,2.8395,176.24,176.19,2.8401]
[1736776395609,13.93471036,176.26,176.17,2.8404]
[1736776395905,13.93471036,176.26,176.14,18.72271036]
[1736776396395,13.93471036,176.23,176.14,4.788]
[1736776396904,2.84,176.21,176.15,2.8408]
[1736776397104,13.93471036,176.23,176.14,18.72271036]
[1736776397297,13.93471036,176.26,176.14,18.72271036]
[1736776397504,2.8394,176.24,176.17,2.8405]
[1736776397807,13.93471036,176.26,176.14,18.72271036]
[1736776398601,2.8396,176.23,176.19,2.8402]
[1736776398802,13.93471036,176.26,176.14,18.72271036]
[1736776399101,2.8393,176.25,176.21,2.8399]
[1736776399306,62.77877598,176.31,176.17,13.93471036]
[1736776399307,13.93471036,176.29,176.17,13.93471036]
[1736776399512,20.31471036,176.29,176.17,13.93471036]
[1736776399710,2.8391,176.26,176.21,2.8398]
[1736776400110,2.8391,176.26,176.17,13.93471036]
[1736776401810,13.93471036,176.29,176.17,13.93471036]
[1736776402207,13.93471036,176.29,176.2,2.84]
[1736776402513,13.93471036,176.26,176.14,4.788]
[1736776402908,2.8394,176.24,176.2,2.8399]
[1736776403810,13.93471036,176.26,176.2,2.8399]
[1736776404012,2.8393,176.25,176.2,2.8399]
[1736776404216,13.93471036,176.26,176.14,4.788]
[1736776404406,13.93471036,176.23,176.14,4.788]
[1736776404610,2.84,176.21,176.14,4.788]
[1736776404813,13.93471036,176.23,176.14,4.788]
[1736776405716,13.93471036,176.23,176.16,2.8406]
[1736776406219,13.93471036,176.2,176.14,3.2219]
[1736776406916,2.8402,176.2,176.16,2.8406]
[1736776407111,13.93471036,176.23,176.14,3.2219]
[1736776407509,2.8398,176.22,176.14,3.2219]
[1736776407718,2.8398,176.22,176.14,4.8561]
[1736776408013,13.93471036,176.23,176.14,4.8561]
[1736776408209,2.8395,176.24,176.14,4.8561]
[1736776408516,2.8395,176.24,176.17,2.8406]
[1736776408712,13.93471036,176.26,176.16,13.93471036]
[1736776408922,2.8393,176.25,176.16,13.93471036]
[1736776411611,2.8393,176.25,176.21,2.8398]
[1736776412014,2.839,176.27,176.19,13.93471036]
[1736776412216,13.93471036,176.29,176.19,13.93471036]